lending/lending_fUSD_20241120
["ID","MTS","AMOUNT","RATE_DAILY","PERIOD"]
[342815016,1732143236221,-1317.99820707,0.00061095,120]
[342815017,1732143236231,-1519.04976002,0.00061095,90]
[342815018,1732143236241,-1643.39146589,0.00061095,120]
[342815019,1732143236251,-1298.77,0.00061095,120]
[342815020,1732143236261,-943.64392584,0.00061095,120]
[342815021,1732143236272,-1649.32182687,0.00061095,120]
[342815022,1732143236282,-500.0,0.00061095,120]
[342815023,1732143236293,-550.87672124,0.00061095,120]
[342815024,1732143236303,-2159.03938307,0.00061095,120]
[342815025,1732143236313,-1165.35332904,0.00061095,120]
[342815026,1732143236323,-5640.57558275,0.00061095,120]
[342815027,1732143236334,-1244.73061738,0.00061095,120]
[342815028,1732143236344,-516.5,0.00061095,120]
[342815029,1732143236354,-1110.31,0.00061095,120]
[342815030,1732143236364,-9870.9715727,0.00061095,120]
[342815031,1732143236374,-986.93481376,0.00061095,120]
[342815032,1732143236384,-567.05352714,0.00061095,120]
[342815033,1732143236394,-651.92859568,0.00061095,120]
[342815034,1732143236404,-3368.98548598,0.00061095,120]
[342815035,1732143236413,-1042.13,0.00061095,120]
[342815036,1732143236423,-6243.61674849,0.00061095,120]
[342815037,1732143236432,-1021.89194369,0.00061095,120]
[342815038,1732143236442,-1221.96480817,0.00061095,120]
[342815039,1732143236451,-1379.07780138,0.00061095,120]
[342815040,1732143236461,-1402.50146124,0.00061095,120]
[342815041,1732143236471,-2325.07180071,0.00061095,120]
[342815042,1732143236480,-1099.02279872,0.00061095,7]
[342815043,1732143236490,-3357.65967362,0.00061095,120]
[342815044,1732143236499,-1503.95538859,0.00061095,120]
[342815045,1732143236508,-500.0,0.00061095,120]
[342815046,1732143236518,-631.66361958,0.00061095,120]
[342815047,1732143236528,-676.42030107,0.00061095,120]
[342815048,1732143236538,-610.69699787,0.00061095,120]
[342815049,1732143236547,-4485.17642972,0.00061095,120]
[342815050,1732143236557,-1449.45152923,0.00061095,120]
[342815051,1732143236566,-802.19692791,0.00061095,120]
[342815052,1732143236576,-1005.94062556,0.00061095,120]
[342815053,1732143236586,-62267.29292782,0.00061095,5]
[342815054,1732143236595,-733.47,0.00061095,120]
[342815055,1732143236605,-1200.30547884,0.00061095,120]
[342815056,1732143236616,-4633.73179532,0.00061095,120]
[342815057,1732143236625,-1462.19702263,0.00061095,120]
[342815058,1732143236635,-1071.78475138,0.00061095,120]
[342815059,1732143236644,-1246.62611745,0.00061095,120]
[342815060,1732143236654,-665.78481876,0.00061095,120]
[342815061,1732143236664,-1619.61116118,0.00061095,120]
[342815062,1732143236674,-1033.25,0.00061095,120]
[342815063,1732143236683,-4155.76096791,0.00061095,120]
[342815064,1732143236693,-270.94211106,0.00061095,120]
[342815065,1732143236702,-534.31908551,0.00061095,120]
[342815066,1732143236712,-716.20549626,0.00061095,120]
[342815067,1732143236722,-710.8,0.00061095,120]
[342815068,1732143236732,-1328.2226522,0.00061095,120]
[342815069,1732143236741,-1770.50632244,0.00061095,120]
[342815070,1732143236751,-1828.2258323,0.00061095,120]
[342815071,1732143236760,-3842.4331786,0.00061095,120]
[342815072,1732143236775,-734.29724237,0.00061095,120]
[342815073,1732143236785,-4113.57653095,0.00061095,120]
[342815074,1732143236795,-3361.31497161,0.00061095,120]
[342815075,1732143236805,-2336.4649298,0.00061095,120]
[342815076,1732143236814,-914.42113144,0.00061095,120]
[342815077,1732143236824,-2227.59357612,0.00061095,120]
[342815078,1732143236833,-1225.77975876,0.00061095,120]
[342815079,1732143236843,-1793.12,0.00061095,120]
[342815080,1732143236852,-1199.56044038,0.00061095,120]
[342815081,1732143236861,-818.61003541,0.00061095,120]
[342815082,1732143236872,-945.89414032,0.00061095,120]
[342815083,1732143236881,-4656.61631139,0.00061095,120]
[342815084,1732143236891,-656.21,0.00061095,120]
[342815085,1732143236900,-1601.16561449,0.00061095,120]
[342815086,1732143236910,-2590.6403793,0.00061095,120]
[342815087,1732143236919,-617.50860104,0.00061095,120]
[342815088,1732143236928,-1087.5487546,0.00061095,120]
[342815089,1732143236940,-1021.41999506,0.00061095,120]
[342815090,1732143236950,-530.39060647,0.00061095,120]
[342815091,1732143236959,-861.7,0.00061095,120]
[342815092,1732143236968,-4078.22253392,0.00061095,120]
[342815093,1732143236978,-609.93649129,0.00061095,120]
[342815094,1732143236988,-1271.18166971,0.00061095,120]
[342815095,1732143236998,-630.17474915,0.00061095,120]
[342815096,1732143237328,-1053.46462473,0.00061095,120]
[342815097,1732143237380,-10737.59686397,0.00061095,21]
[342815098,1732143237390,-868.94680239,0.00061095,120]
[342815099,1732143237400,-3054.52867753,0.00061095,120]
[342815100,1732143237410,-772.23921181,0.00061095,120]
[342815101,1732143237419,-790.88566146,0.00061095,120]
[342815102,1732143237429,-1615.76013083,0.00061095,120]
[342815103,1732143237438,-576.17,0.00061095,120]
[342815104,1732143237448,-2780.93244678,0.00061095,120]
[342815105,1732143237458,-3170.2562275,0.00061095,120]
[342815106,1732143237467,-530.69098459,0.00061095,120]
[342815107,1732143237477,-814.34158753,0.00061095,120]
[342815108,1732143237486,-1053.95542683,0.00061095,120]
[342815109,1732143237496,-832.37431161,0.00061095,120]
[342815110,1732143237506,-559.27092851,0.00061095,120]
[342815111,1732143237515,-962.3702068,0.00061095,120]
[342815112,1732143237525,-4610.85,0.00061095,120]
[342815113,1732143237535,-631.18737988,0.00061095,120]
[342815114,1732143237544,-1498.11720798,0.00061095,120]
[342815115,1732143237556,-500.0,0.00061095,120]
[342815116,1732143237567,-3030.67146645,0.00061095,120]
[342815117,1732143237577,-2002.76,0.00061095,120]
[342815118,1732143237586,-4996.67409551,0.00061095,120]
[342815119,1732143237595,-1038.69003912,0.00061095,120]
[342815120,1732143237605,-7093.60691224,0.00061095,120]
[342815121,1732143237615,-3755.24379043,0.00061095,120]
[342815122,1732143237625,-500.45840633,0.00061095,120]
[342815123,1732143237634,-1396.04237341,0.00061095,120]
[342815124,1732143237645,-6717.89896747,0.00061095,120]
[342815125,1732143237654,-619.5518235,0.00061095,120]
[342815126,1732143237664,-4210.16456015,0.00061095,120]
[342815127,1732143237674,-500.0,0.00061095,120]
[342815128,1732143237684,-4619.33948997,0.00061095,120]
[342815129,1732143237694,-2125.73255126,0.00061095,120]
[342815130,1732143237704,-1522.49736762,0.00061095,120]
[342815131,1732143237713,-2913.7131597,0.00061095,120]
[342815132,1732143237723,-654.65,0.00061095,120]
[342815133,1732143237732,-6408.72016267,0.00061095,60]
[342815134,1732143237742,-8536.15282472,0.00061095,120]
[342815135,1732143237752,-931.69,0.00061095,120]
[342815136,1732143237762,-5185.84996333,0.00061095,120]
[342815137,1732143237772,-873.4,0.00061095,120]
[342815138,1732143237782,-1838.90800286,0.00061095,120]
[342815139,1732143237792,-1525.65748178,0.00061095,120]
[342815140,1732143237802,-1373.09889077,0.00061095,120]
[342815141,1732143237812,-1659.92143513,0.00061095,120]
[342815142,1732143237821,-500.0,0.00061095,120]
[342815143,1732143237831,-5908.00629734,0.00061095,120]
[342815144,1732143237840,-647.21064769,0.00061095,120]
[342815145,1732143237849,-1210.83442686,0.00061095,120]
[342815146,1732143237859,-526.79,0.00061095,120]
[342815147,1732143237868,-12504.90495586,0.00061095,120]
[342815148,1732143237878,-2077.19329481,0.00061095,120]
[342815149,1732143237887,-1181.45889347,0.00061095,120]
[342815150,1732143237897,-677.42610024,0.00061095,120]
[342815151,1732143237906,-1109.2321394,0.00061095,120]
[342815152,1732143237916,-2434.10427977,0.00061095,120]
[342815153,1732143237925,-557.25,0.00061095,120]
[342815154,1732143237939,-652.17811766,0.00061095,120]
[342815155,1732143237949,-4681.76531926,0.00061095,120]
[342815156,1732143237958,-1099.40121121,0.00061095,120]
[342815157,1732143237969,-758.10776881,0.00061095,120]
[342815158,1732143237979,-986.8179102,0.00061095,120]
[342815159,1732143237989,-880.57,0.00061095,120]
[342815160,1732143237999,-1502.39300407,0.00061095,120]
[342815161,1732143238009,-1167.06716044,0.00061095,120]
[342815162,1732143238020,-500.0,0.00061095,120]
[342815163,1732143238030,-1450.48899988,0.00061095,120]
[342815164,1732143238039,-548.34169996,0.00061095,120]
[342815165,1732143238049,-2144.56785823,0.00061095,120]
[342815166,1732143238059,-14474.60594124,0.00061095,120]
[342815167,1732143238068,-16730.06483146,0.00061095,120]
[342815168,1732143238078,-1032.36510581,0.00061095,120]
[342815169,1732143238088,-500.0,0.00061095,120]
[342815170,1732143238097,-533.90418663,0.00061095,120]
[342815171,1732143238107,-726.99525694,0.00061095,120]
[342815172,1732143238117,-3517.96447108,0.00061095,120]
[342815173,1732143238126,-2375.99502904,0.00061095,120]
[342815174,1732143238136,-2949.65052107,0.00061095,120]
[342815175,1732143238146,-680.50061649,0.00061095,120]
[342815176,1732143238156,-629.64938701,0.00061095,120]
[342815177,1732143238165,-1835.48,0.00061095,120]
[342815178,1732143238175,-567.61034641,0.00061095,120]
[342815179,1732143238185,-1270.06784795,0.00061095,120]
[342815180,1732143238195,-988.11,0.00061095,120]
[342815181,1732143238204,-1078.0394531,0.00061095,120]
[342815182,1732143238214,-1080.8027538,0.00061095,120]
[342815183,1732143238224,-731.03195551,0.00061095,120]
[342815184,1732143238234,-794.48486789,0.00061095,120]
[342815185,1732143238244,-836.57083734,0.00061095,120]
[342815186,1732143238253,-877.25871821,0.00061095,120]
[342815187,1732143238263,-1007.12878846,0.00061095,120]
[342815188,1732143238274,-873.39,0.00061095,120]
[342815189,1732143238284,-1076.47,0.00061095,120]
[342815190,1732143238294,-5067.81297051,0.00061095,120]
[342815191,1732143238303,-897.56592332,0.00061095,120]
[342815192,1732143238313,-615.05530413,0.00061095,120]
[342815193,1732143238324,-537.82064998,0.00061095,120]
[342815194,1732143238334,-1213.36329943,0.00061095,120]
[342815195,1732143238343,-911.59175693,0.00061095,120]
[342815196,1732143238354,-1001.66142121,0.00061095,120]
[342815197,1732143238364,-1621.17,0.00061095,120]
[342815198,1732143238373,-1005.08169225,0.00061095,120]
[342815199,1732143238384,-1363.25182321,0.00061095,120]
[342815200,1732143238394,-670.805724,0.00061095,120]
[342815201,1732143238403,-4519.84,0.00061095,120]
[342815202,1732143238413,-597.05799623,0.00061095,120]
[342815203,1732143238422,-681.21061422,0.00061095,120]
[342815204,1732143238431,-1529.32102266,0.00061095,120]
[342815205,1732143238440,-500.0,0.00061095,120]
[342815206,1732143238449,-5382.66549536,0.00061095,120]
[342815207,1732143238460,-640.46287758,0.00061095,120]
[342815208,1732143238470,-2209.57328201,0.00061095,120]
[342815209,1732143238480,-1045.45476067,0.00061095,120]
[342815210,1732143238490,-1500.0,0.000611,120]
[342815211,1732143238501,-3000.0,0.000611,90]
[342815212,1732143238511,-674.72531698,0.00061151,120]
[342815213,1732143238524,-245.97244822,0.00061151,120]
[342815214,1732143238534,-300.08402069,0.00061151,120]
[342815215,1732143238543,-150.0,0.00061197,120]
[342815216,1732143238552,-674.72531698,0.00061218,120]
[342815217,1732143238562,-245.97244822,0.00061218,120]
[342815218,1732143238572,-300.08402069,0.00061218,120]
[342815219,1732143238581,-150.0,0.0006124,120]
[342815220,1732143238594,-150.0,0.00061272,120]
[342815221,1732143238603,-674.72531698,0.00061285,120]
[342815222,1732143238612,-245.97244822,0.00061285,120]
[342815223,1732143238623,-300.08402069,0.00061285,120]
[342815224,1732143238633,-150.0,0.00061322,120]
[342815225,1732143238642,-674.72531698,0.00061353,120]
[342815226,1732143238653,-245.97244822,0.00061353,120]
[342815227,1732143238662,-300.08402069,0.00061353,120]
[342815228,1732143238672,-500.0,0.00061369,120]
[342815229,1732143238682,-500.0,0.00061369,120]
[342815230,1732143238691,-1252.22,0.00061369,120]
[342815231,1732143238701,-645.32687402,0.00061369,120]
[342815232,1732143238712,-500.0,0.00061369,120]
[342815233,1732143238722,-576.02,0.00061369,120]
[342815234,1732143238734,-771.31,0.00061369,120]
[342815235,1732143238744,-500.0,0.00061369,120]
[342815236,1732143238753,-500.0,0.00061369,120]
[342815237,1732143238763,-500.0,0.00061369,120]
[342815238,1732143238776,-500.0,0.00061369,120]
[342815239,1732143238784,-500.0,0.00061369,120]
[342815240,1732143238794,-500.0,0.00061369,120]
[342815241,1732143238803,-554.38,0.00061369,120]
[342815242,1732143238812,-500.0,0.00061369,120]
[342815243,1732143238821,-601.61,0.00061369,120]
[342815244,1732143238830,-1158.3,0.00061369,120]
[342815245,1732143238840,-500.0,0.00061369,120]
[342815246,1732143238849,-500.0,0.00061369,120]
[342815247,1732143238858,-1261.01,0.00061369,120]
[342815248,1732143238867,-500.0,0.00061369,120]
[342815249,1732143238876,-598.93,0.00061369,120]
[342815250,1732143238886,-500.0,0.00061369,120]
[342815251,1732143238895,-500.0,0.00061369,120]
[342815252,1732143238904,-1006.34,0.00061369,120]
[342815253,1732143238914,-500.0,0.00061369,120]
[342815254,1732143238923,-504.43,0.00061369,120]
[342815255,1732143238934,-500.0,0.00061369,120]
[342815256,1732143238947,-500.0,0.00061369,120]
[342815257,1732143238956,-500.0,0.00061369,120]
[342815258,1732143238965,-500.0,0.00061369,120]
[342815259,1732143238975,-1283.37,0.00061369,120]
[342815260,1732143238985,-701.26,0.00061369,120]
[342815261,1732143238994,-1332.5,0.00061369,120]
[342815262,1732143239004,-761.37,0.00061369,120]
[342815263,1732143239015,-673.21,0.00061369,120]
[342815264,1732143239024,-500.0,0.00061369,120]
[342815265,1732143239034,-570.71,0.00061369,120]
[342815266,1732143239044,-500.0,0.00061369,120]
[342815267,1732143239055,-688.18,0.00061369,120]
[342815268,1732143239066,-500.0,0.00061369,120]
[342815269,1732143239075,-500.0,0.00061369,120]
[342815270,1732143239086,-874.95,0.00061369,120]
[342815271,1732143239097,-705.26,0.00061369,120]
[342815272,1732143239107,-500.0,0.00061369,120]
[342815273,1732143239117,-862.02,0.00061369,120]
[342815274,1732143239127,-710.13,0.00061369,120]
[342815275,1732143239138,-500.0,0.00061369,120]
[342815276,1732143239148,-575.87,0.00061369,120]
[342815277,1732143239158,-533.41,0.00061369,120]
[342815278,1732143239168,-1044.98,0.00061369,120]
[342815279,1732143239177,-500.0,0.00061369,120]
[342815280,1732143239186,-598.39,0.00061369,120]
[342815281,1732143239196,-500.0,0.00061369,120]
[342815282,1732143239206,-876.64,0.00061369,120]
[342815283,1732143239215,-500.0,0.00061369,120]
[342815284,1732143239225,-853.3,0.00061369,120]
[342815285,1732143239235,-500.0,0.00061369,120]
[342815286,1732143239245,-929.3,0.00061369,120]
[342815287,1732143239254,-500.0,0.00061369,120]
[342815288,1732143239263,-500.0,0.00061369,120]
[342815289,1732143239274,-839.52,0.00061369,120]
[342815290,1732143239284,-818.09,0.00061369,60]
[342815291,1732143239293,-500.0,0.00061369,120]
[342815292,1732143239303,-932.52,0.00061369,120]
[342815293,1732143239312,-500.0,0.00061369,120]
[342815294,1732143239321,-500.0,0.00061369,120]
[342815295,1732143239331,-528.98,0.00061369,120]
[342815296,1732143239340,-500.0,0.00061369,120]
[342815297,1732143239350,-694.38,0.00061369,120]
[342815298,1732143239359,-512.65,0.00061369,120]
[342815299,1732143239369,-500.0,0.00061369,120]
[342815300,1732143239379,-1167.24,0.00061369,120]
[342815301,1732143239388,-577.22,0.00061369,120]
[342815302,1732143239398,-786.11,0.00061369,120]
[342815303,1732143239408,-819.5,0.00061369,120]
[342815304,1732143239418,-500.0,0.00061369,120]
[342815305,1732143239428,-500.0,0.00061369,120]
[342815306,1732143239437,-500.0,0.00061369,120]
[342815307,1732143239446,-769.28,0.00061369,120]
[342815308,1732143239456,-500.0,0.00061369,120]
[342815309,1732143239465,-500.0,0.00061369,120]
[342815310,1732143239474,-500.0,0.00061369,120]
[342815311,1732143239483,-598.71,0.00061369,120]
[342815312,1732143239492,-500.0,0.00061369,120]
[342815313,1732143239502,-1024.27,0.00061369,120]
[342815314,1732143239511,-583.69,0.00061369,120]
[342815315,1732143239521,-1242.02,0.00061369,120]
[342815316,1732143239531,-1011.03,0.00061369,120]
[342815317,1732143239541,-500.0,0.00061369,120]
[342815318,1732143239550,-500.0,0.00061369,120]
[342815320,1732143239559,-785.27,0.00061369,120]
[342815321,1732143239569,-1740.08,0.00061369,120]
[342815322,1732143239578,-500.0,0.00061369,120]
[342815323,1732143239587,-500.0,0.00061369,120]
[342815324,1732143239596,-500.0,0.00061369,120]
[342815325,1732143239605,-703.85,0.00061369,120]
[342815326,1732143239614,-500.0,0.00061369,120]
[342815327,1732143239623,-628.65,0.00061369,120]
[342815328,1732143239632,-500.0,0.00061369,120]
[342815329,1732143239641,-500.0,0.00061369,120]
[342815330,1732143239651,-799.65,0.00061369,120]
[342815331,1732143239659,-500.0,0.00061369,120]
[342815332,1732143239670,-821.37,0.00061369,120]
[342815333,1732143239679,-1270.46,0.00061369,120]
[342815334,1732143239687,-540.6140615,0.00061369,120]
[342815335,1732143239696,-500.0,0.00061369,120]
[342815336,1732143239705,-500.0,0.00061369,120]
[342815337,1732143239714,-1026.3,0.00061369,120]
[342815338,1732143239724,-654.97,0.00061369,120]
[342815339,1732143239733,-1162.69,0.00061369,120]
[342815340,1732143239868,-1475.7,0.00061369,120]
[342815341,1732143239878,-433.2963945,0.00061369,120]
[342815342,1732143239887,-500.0,0.00061369,120]
[342815343,1732143239896,-534.81,0.00061369,120]
[342815344,1732143239906,-500.0,0.00061369,120]
[342815345,1732143239916,-536.1,0.00061369,120]
[342815346,1732143239925,-1309.27,0.00061369,120]
[342815347,1732143239935,-556.25,0.00061369,120]
[342815348,1732143239947,-500.0,0.00061369,120]
[342815349,1732143239956,-500.0,0.00061369,120]
[342815350,1732143239965,-1229.98,0.00061369,120]
[342815351,1732143239974,-500.0,0.00061369,120]
[342815352,1732143239985,-469.61144119,0.00061369,120]
[342815353,1732143239994,-322.87182006,0.00061369,120]
[342815354,1732143240004,-500.0,0.00061369,120]
[342815355,1732143240016,-872.55,0.00061369,120]
[342815356,1732143240026,-656.67,0.00061369,120]
[342815357,1732143240036,-999.09,0.00061369,120]
[342815358,1732143240046,-569.99,0.00061369,120]
[342815359,1732143240055,-709.28,0.00061369,120]
[342815360,1732143240064,-569.41,0.00061369,120]
[342815361,1732143240074,-1489.09,0.00061369,120]
[342815362,1732143240083,-1118.01,0.00061369,120]
[342815363,1732143240092,-500.0,0.00061369,120]
[342815364,1732143240101,-500.0,0.00061369,120]
[342815365,1732143240111,-562.17,0.00061369,120]
[342815366,1732143240120,-500.0,0.00061369,120]
[342815367,1732143240130,-516.5,0.00061369,120]
[342815368,1732143240139,-1042.13,0.00061369,120]
[342815369,1732143240148,-431.83662265,0.00061369,120]
[342815370,1732143240157,-733.47,0.00061369,120]
[342815371,1732143240166,-1033.25,0.00061369,120]
[342815372,1732143240175,-1793.12,0.00061369,120]
[342815373,1732143240184,-861.7,0.00061369,120]
[342815374,1732143240193,-576.17,0.00061369,120]
[342815375,1732143240203,-500.0,0.00061369,120]
[342815376,1732143240212,-500.0,0.00061369,120]
[342815377,1732143240221,-654.65,0.00061369,120]
[342815378,1732143240231,-500.0,0.00061369,120]
[342815379,1732143240241,-557.25,0.00061369,120]
[342815380,1732143240253,-500.0,0.00061369,120]
[342815381,1732143240263,-500.0,0.00061369,120]
[342815382,1732143240280,-988.11,0.00061369,120]
[342815383,1732143240290,-1076.47,0.00061369,120]
[342815384,1732143240299,-500.0,0.00061369,120]
[342815385,1732143240309,-500.0,0.00061394,120]
[342815386,1732143240319,-201.0,0.000614,120]
[342815387,1732143240328,-204.0,0.000614,120]
[342815388,1732143240338,-215.0,0.000614,120]
[342815389,1732143240348,-150.0,0.00061402,120]
[342815390,1732143240357,-1582.0,0.00061404,30]
[342815391,1732143240367,-674.72531698,0.0006142,120]
[342815392,1732143240376,-245.97244822,0.0006142,120]
[342815393,1732143240385,-300.08402069,0.0006142,120]
[342815394,1732143240395,-150.0,0.00061448,120]
[342815395,1732143240404,-674.72531698,0.00061487,120]
[342815396,1732143240413,-245.97244822,0.00061487,120]
[342815397,1732143240423,-300.08402069,0.00061487,120]
[342815398,1732143240432,-150.0,0.00061494,120]
[342815399,1732143240441,-50000.0,0.000615,120]
[342815400,1732143240451,-962050.90995383,0.000615,120]
[342815401,1732143241245,-317.90889257,0.00054794,120]
[342815402,1732143241307,-533.40110743,0.00054794,120]
[342815403,1732143241316,-5505.96,0.00054794,120]
[342815404,1732143241326,-500.0,0.00055342,120]
[342815405,1732143241336,-909.91,0.00056986,120]
[342815406,1732143241346,-5128.91,0.0005726,120]
[342815407,1732143241356,-500.0,0.00057808,120]
[342815408,1732143241366,-3525.53,0.00058082,120]
[342815409,1732143241376,-1122.59,0.00059451,120]
[342815410,1732143241386,-37949.09004617,0.000615,120]
[342815411,1732143241395,-674.72531698,0.00061555,120]
[342815412,1732143241404,-245.97244822,0.00061555,120]
[342815413,1732143241414,-300.08402069,0.00061555,120]
[342815414,1732143241424,-150.0,0.00061564,120]
[342815415,1732143241433,-150.0,0.00061574,120]
[342815416,1732143241443,-150.0,0.00061605,120]
[342815417,1732143241452,-674.72531698,0.00061622,120]
[342815418,1732143241461,-245.97244822,0.00061622,120]
[342815419,1732143241471,-300.08402069,0.00061622,120]
[342815420,1732143241479,-500.0,0.00061643,120]
[342815421,1732143241488,-500.0,0.00061643,120]
[342815422,1732143241497,-1252.22,0.00061643,120]
[342815423,1732143241506,-500.0,0.00061643,120]
[342815424,1732143241516,-576.02,0.00061643,120]
[342815425,1732143241528,-771.31,0.00061643,120]
[342815426,1732143241538,-500.0,0.00061643,120]
[342815427,1732143241548,-500.0,0.00061643,120]
[342815428,1732143241557,-500.0,0.00061643,120]
[342815429,1732143241567,-500.0,0.00061643,120]
[342815430,1732143241576,-502.09477056,0.00061643,120]
[342815431,1732143241586,-406.83712729,0.00061643,120]
[342815432,1732143241596,-554.38,0.00061643,120]
[342815433,1732143241605,-500.0,0.00061643,120]
[342815434,1732143241614,-601.61,0.00061643,120]
[342815435,1732143241624,-1158.3,0.00061643,120]
[342815436,1732143241633,-500.0,0.00061643,120]
[342815437,1732143241642,-500.0,0.00061643,120]
[342815438,1732143241652,-1261.01,0.00061643,120]
[342815439,1732143241663,-500.0,0.00061643,120]
[342815440,1732143241672,-598.93,0.00061643,120]
[342815441,1732143241682,-500.0,0.00061643,120]
[342815442,1732143241692,-500.0,0.00061643,120]
[342815443,1732143241701,-1006.34,0.00061643,120]
[342815444,1732143241710,-506.69454059,0.00061643,120]
[342815445,1732143241720,-504.43,0.00061643,120]
[342815446,1732143241731,-500.0,0.00061643,120]
[342815447,1732143241741,-500.0,0.00061643,120]
[342815448,1732143241750,-500.0,0.00061643,120]
[342815449,1732143241761,-500.0,0.00061643,120]
[342815450,1732143241773,-1283.37,0.00061643,120]
[342815451,1732143241783,-701.26,0.00061643,120]
[342815452,1732143241792,-1332.5,0.00061643,120]
[342815453,1732143241802,-761.37,0.00061643,120]
[342815454,1732143241811,-500.0,0.00061643,120]
[342815455,1732143241821,-673.21,0.00061643,120]
[342815456,1732143241830,-570.71,0.00061643,120]
[342815457,1732143241840,-595.24078467,0.00061643,120]
[342815458,1732143241850,-688.18,0.00061643,120]
[342815459,1732143241860,-500.0,0.00061643,120]
[342815460,1732143241870,-500.0,0.00061643,120]
[342815461,1732143241879,-874.95,0.00061643,120]
[342815462,1732143241889,-705.26,0.00061643,120]
[342815463,1732143241899,-500.0,0.00061643,120]
[342815464,1732143241908,-862.02,0.00061643,120]
[342815465,1732143241918,-710.13,0.00061643,120]
[342815466,1732143241927,-500.0,0.00061643,120]
[342815467,1732143241940,-575.87,0.00061643,120]
[342815468,1732143241951,-533.41,0.00061643,120]
[342815469,1732143241961,-1044.98,0.00061643,120]
[342815470,1732143241971,-598.39,0.00061643,120]
[342815471,1732143241981,-500.0,0.00061643,120]
[342815472,1732143241990,-876.64,0.00061643,120]
[342815473,1732143242000,-500.0,0.00061643,120]
[342815474,1732143242010,-853.3,0.00061643,120]
[342815475,1732143242025,-275.05851826,0.00061643,120]
[342815476,1732143242035,-929.3,0.00061643,120]
[342815477,1732143242044,-500.0,0.00061643,120]
[342815478,1732143242054,-500.0,0.00061643,120]
[342815479,1732143242064,-839.52,0.00061643,120]
[342815480,1732143242074,-818.09,0.00061643,60]
[342815481,1732143242084,-192.46577001,0.00061643,120]
[342815482,1732143242094,-932.52,0.00061643,120]
[342815483,1732143242103,-500.0,0.00061643,120]
[342815484,1732143242112,-500.0,0.00061643,120]
[342815485,1732143242122,-528.98,0.00061643,120]
[342815486,1732143242131,-500.0,0.00061643,120]
[342815487,1732143242142,-694.38,0.00061643,120]
[342815488,1732143242151,-512.65,0.00061643,120]
[342815489,1732143242161,-500.0,0.00061643,120]
[342815490,1732143242170,-1167.24,0.00061643,120]
[342815491,1732143242181,-577.22,0.00061643,120]
[342815492,1732143242190,-786.11,0.00061643,120]
[342815493,1732143242200,-819.5,0.00061643,120]
[342815494,1732143242210,-500.0,0.00061643,120]
[342815495,1732143242220,-500.0,0.00061643,120]
[342815496,1732143242230,-500.0,0.00061643,120]
[342815497,1732143242240,-769.28,0.00061643,120]
[342815498,1732143242250,-500.0,0.00061643,120]
[342815499,1732143242260,-500.0,0.00061643,120]
[342815500,1732143242271,-500.0,0.00061643,120]
[342815501,1732143242281,-598.71,0.00061643,120]
[342815502,1732143242290,-500.0,0.00061643,120]
[342815503,1732143242300,-1024.27,0.00061643,120]
[342815504,1732143242309,-583.69,0.00061643,120]
[342815505,1732143242318,-1242.02,0.00061643,120]
[342815506,1732143242327,-1011.03,0.00061643,120]
[342815507,1732143242337,-500.0,0.00061643,120]
[342815508,1732143242346,-500.0,0.00061643,120]
[342815509,1732143242356,-785.27,0.00061643,120]
[342815510,1732143242366,-1740.08,0.00061643,120]
[342815511,1732143242381,-500.0,0.00061643,120]
[342815512,1732143242390,-500.0,0.00061643,120]
[342815513,1732143242400,-500.0,0.00061643,120]
[342815514,1732143242410,-703.85,0.00061643,120]
[342815515,1732143242420,-500.0,0.00061643,120]
[342815516,1732143242429,-628.65,0.00061643,120]